Workbook

Sheet Sheet1
A1: Template for perpendicular drop area measurements of two overlapping peaks, using 1st derivative symmetricalization and 2nd derivative sharpening.
A2: (1) Paste your raw data into column A and B, rows 9 to 613. (2) Adjust K1 first for symmetry. (3) Enter the x-values for the start, valley, and end for the pair of sharpened peaks to measure.
B3: Peak settings | D3: Row # | F3: Measured areas | G3: First peak | H3: Second peak | J3: Type estimated values of K1 (1st derivative) and K2 (2nd derivative) weighting factors and then click the buttons to fine-tune.
B4: Start x | C4: 500 | D4: =MATCH(C4,A9:A612)+8 -> 59 | F4: Raw | G4: =(SUM(INDIRECT("c"&D4):INDIRECT("c"&D5))*(A10-A9)) -> 192.1694712 | H4: =(SUM(INDIRECT("c"&D5):INDIRECT("c"&D6))*(A10-A9)) -> 111.6298167 | J4: K1= | K4: 190.3359739 | M4: The smooth function is defined by the 17 red coefficients in row 5, columns K through AA.
B5: Valley x | C5: 1310 | D5: =MATCH(C5,A9:A613)+8 -> 140 | F5: Sharpened | G5: =(SUM(INDIRECT("k"&D4):INDIRECT("k"&D5))*(A11-A10)) -> 249.327758 | H5: =(SUM(INDIRECT("k"&D5):INDIRECT("k"&D6))*(A11-A10)) -> 53.29510355 | J5: K2= | K5: 66.58892971 | M5: -8 | N5: -7 | O5: -6 | P5: -5 | Q5: -4 | R5: -3 | S5: -2 | T5: -1 | U5: 0 | V5: 1 | W5: 2 | X5: 3 | Y5: 4 | Z5: 5 | AA5: 6 | AB5: 7 | AC5: 8
B6: End x | C6: 2800 | D6: =MATCH(C6,A9:A614)+8 -> 289 | L6: Smooth coefficients---> | M6: 0 | N6: 0 | O6: 0 | P6: 0 | Q6: 0 | R6: 0 | S6: 0 | T6: 1 | U6: 2 | V6: 1 | W6: 0 | X6: 0 | Y6: 0 | Z6: 0 | AA6: 0 | AB6: 0 | AC6: 0
A7: Raw data | B7: Baseline | C7: 0
A8: X | B8: Y | C8: Baseline corrected | D8: 1st derivative | F8: Smoothed 1st deriv. | G8: 2nd derivative | H8: Smoothed 2nd deriv. | K8: Sharpened Signal
A9: 0 | B9: 9.10338683e-24 | C9: =B9-$C$7 -> 9.10338683e-24 | D9: 0 | F9: 0 | H9: 0 | K9: =C9-($K$5*H9)+($K$4*F9) -> 9.10338683e-24
A10: 10 | B10: 2.485473386e-23 | C10: =B10-$C$7 -> 2.485473386e-23 | D10: =(B11-B9)/(A11-A9) -> 2.904375019e-24 | F10: 0 | G10: =(F11-F9)/(A11-A9) -> 0 | H10: 0 | K10: =C10-($K$5*H10)+($K$4*F10) -> 2.485473386e-23
A11: 20 | B11: 6.719088722e-23 | C11: 6.719088722e-23 | D11: =(B12-B10)/(A12-A10) -> 7.749701938e-24 | F11: 0 | G11: =(F12-F10)/(A12-A10) -> 0 | H11: 0 | K11: 6.719088722e-23
A12: 30 | B12: 1.798487726e-22 | C12: 1.798487726e-22 | D12: 2.047304079e-23 | F12: 0 | G12: =(F13-F11)/(A13-A11) -> 0 | H12: 0 | K12: 1.798487726e-22
A13: 40 | B13: 4.76651703e-22 | C13: 4.76651703e-22 | D13: 5.354817479e-23 | F13: 0 | G13: =(F14-F12)/(A14-A12) -> 0 | H13: 0 | K13: 4.76651703e-22
A14: 50 | B14: 1.250812268e-21 | C14: 1.250812268e-21 | D14: 1.386666038e-22 | F14: 0 | G14: =(F15-F13)/(A15-A13) -> 0 | H14: 0 | K14: 1.250812268e-21
A15: 60 | B15: 3.249983779e-21 | C15: 3.249983779e-21 | D15: 3.555198746e-22 | F15: 0 | G15: =(F16-F14)/(A16-A14) -> 0 | H15: 0 | K15: 3.249983779e-21
A16: 70 | B16: 8.361209761e-21 | C16: 8.361209761e-21 | D16: 9.024446925e-22 | F16: 0 | G16: =(F17-F15)/(A17-A15) -> 0 | H16: 0 | K16: 8.361209761e-21
A17: 80 | B17: 2.129887763e-20 | C17: 2.129887763e-20 | D17: 2.267994063e-21 | F17: 0 | G17: 0 | H17: 0 | K17: 2.129887763e-20
A18: 90 | B18: 5.372109102e-20 | C18: 5.372109102e-20 | D18: 5.643229785e-21 | F18: =(D10*$M$6+D11*$N$6+D12*$O$6+D13*$P$6+D14*$Q$6+D15*$R$6+D16*$S$6+D17*$T$6+D18*$U$6+D19*$V$6+D20*$W$6+D21*$X$6+D22*$Y$6+D23*$Z$6+D24*$AA$6+D25*$AB$6+D26*$AC$6)/SUM($M$6:$AC$6) -> 6.86411872e-21 | G18: 0 | H18: 0 | K18: 1.360209812e-18
A19: 100 | B19: 1.341634733e-19 | C19: 1.341634733e-19 | D19: 1.390202125e-20 | F19: 1.6838628e-20 | G19: =(F20-F18)/(A20-A18) -> 1.701734397e-21 | H19: 0 | K19: 3.339160132e-18
A20: 110 | B20: 3.31761516e-19 | C20: 3.31761516e-19 | D20: 3.390723972e-20 | F20: 4.089880667e-20 | G20: =(F21-F19)/(A21-A19) -> 4.075819662e-21 | H20: 0 | K20: 8.116275713e-18
A21: 120 | B21: 8.123082677e-19 | C21: 8.123082677e-19 | D21: 8.187872598e-20 | F21: 9.835502124e-20 | G21: =(F22-F20)/(A22-A20) -> 9.664451736e-21 | H21: 0 | K21: 1.953280702e-17
A22: 130 | B22: 1.969336036e-18 | C22: 1.969336036e-18 | D22: 1.957553933e-19 | F22: 2.341878414e-19 | G22: =(F23-F21)/(A23-A21) -> 2.268701014e-20 | H22: 0 | K22: 4.654370689e-17
A23: 140 | B23: 4.727416133e-18 | C23: 4.727416133e-18 | D23: 4.63361853e-19 | F23: 5.52095224e-19 | G23: =(F24-F22)/(A24-A22) -> 5.27246543e-20 | H23: 0 | K23: 1.098109983e-16
A24: 150 | B24: 1.12365731e-17 | C24: 1.12365731e-17 | D24: 1.085901797e-18 | F24: 1.288680927e-18 | G24: =(F25-F23)/(A25-A23) -> 1.213068269e-19 | H24: 0 | K24: 2.565189124e-16
A25: 160 | B25: 2.644545207e-17 | C25: 2.644545207e-17 | D25: 2.519558263e-18 | F25: 2.978231762e-18 | G25: =(F26-F24)/(A26-A24) -> 2.763059941e-19 | H25: 0 | K25: 5.933100949e-16
A26: 170 | B26: 6.162773835e-17 | C26: 6.162773835e-17 | D26: 5.787908727e-18 | F26: 6.814800809e-18 | G26: =(F27-F25)/(A27-A25) -> 6.230564635e-19 | H26: 0 | K26: 1.358729487e-15
A27: 180 | B27: 1.422036266e-16 | C27: 1.422036266e-16 | D27: 1.316382752e-17 | F27: 1.543936103e-17 | G27: =(F28-F26)/(A28-A26) -> 1.390896935e-18 | H27: =(G19*$M$6+G20*$N$6+G21*$O$6+G22*$P$6+G23*$Q$6+G24*$R$6+G25*$S$6+G26*$T$6+G27*$U$6+G28*$V$6+G29*$W$6+G30*$X$6+G31*$Y$6+G32*$Z$6+G33*$AA$6+G34*$AB$6+G35*$AC$6)/SUM($M$6:$AC$6) -> 1.61969032e-18 | K27: 2.973016e-15
A28: 190 | B28: 3.249042887e-16 | C28: 3.249042887e-16 | D28: 2.964188037e-17 | F28: 3.463273951e-17 | G28: =(F29-F27)/(A29-A27) -> 3.073910944e-18 | H28: =(G20*$M$6+G21*$N$6+G22*$O$6+G23*$P$6+G24*$Q$6+G25*$R$6+G26*$S$6+G27*$T$6+G28*$U$6+G29*$V$6+G30*$W$6+G31*$X$6+G32*$Y$6+G33*$Z$6+G34*$AA$6+G35*$AB$6+G36*$AC$6)/SUM($M$6:$AC$6) -> 3.566016348e-18 | K28: 6.679303279e-15
A29: 200 | B29: 7.35041234e-16 | C29: 7.35041234e-16 | D29: 6.608336978e-17 | F29: 7.691757992e-17 | G29: =(F30-F28)/(A30-A28) -> 6.725346569e-18 | H29: =(G21*$M$6+G22*$N$6+G23*$O$6+G24*$P$6+G25*$Q$6+G26*$R$6+G27*$S$6+G28*$T$6+G29*$U$6+G30*$V$6+G31*$W$6+G32*$X$6+G33*$Y$6+G34*$Z$6+G35*$AA$6+G36*$AB$6+G37*$AC$6)/SUM($M$6:$AC$6) -> 7.772843909e-18 | K29: 1.485763836e-14
A30: 210 | B30: 1.646571684e-15 | C30: 1.646571684e-15 | D30: 1.458616998e-16 | F30: 1.691396709e-16 | G30: =(F31-F29)/(A31-A29) -> 1.456677155e-17 | H30: 1.677336108e-17 | K30: 3.27230155e-14
A31: 220 | B31: 3.652275229e-15 | C31: 3.652275229e-15 | D31: 3.187519143e-16 | F31: 3.68253011e-16 | G31: =(F32-F30)/(A32-A30) -> 3.123455463e-17 | H31: 3.583455029e-17 | K31: 7.135788635e-14
A32: 230 | B32: 8.02160997e-15 | C32: 8.02160997e-15 | D32: 6.896465156e-16 | F32: 7.938307635e-16 | G32: =(F33-F31)/(A33-A31) -> 6.630232035e-17 | H32: 7.579204593e-17 | K32: 1.540692502e-13
A33: 240 | B33: 1.744520554e-14 | C33: 1.744520554e-14 | D33: 1.477278108e-15 | F33: 1.694299418e-15 | G33: =(F34-F32)/(A34-A32) -> 1.393289884e-16 | H33: 1.587022631e-16 | K33: 3.293635214e-13
A34: 250 | B34: 3.756717214e-14 | C34: 3.756717214e-14 | D34: 3.13299494e-15 | F34: 3.580410531e-15 | G34: =(F35-F33)/(A35-A33) -> 2.898487552e-16 | H34: 3.289867e-16 | K34: 6.971412251e-13
A35: 260 | B35: 8.010510433e-14 | C35: 8.010510433e-14 | D35: 6.578374135e-15 | F35: 7.491274521e-15 | G35: =(F36-F34)/(A36-A34) -> 5.969203014e-16 | H35: 6.751606318e-16 | K35: 1.461005912e-12
A36: 270 | B36: 1.691346548e-13 | C36: 1.691346548e-13 | D36: 1.367535487e-14 | F36: 1.551881656e-14 | G36: =(F37-F35)/(A37-A35) -> 1.216953169e-15 | H36: 1.371725279e-15 | K36: 3.031582e-12
A37: 280 | B37: 3.536122018e-13 | C37: 3.536122018e-13 | D37: 2.814618235e-14 | F37: 3.183033791e-14 | G37: =(F38-F36)/(A38-A36) -> 2.456074474e-15 | H37: 2.759027551e-15 | K37: 6.228349874e-12
A38: 290 | B38: 7.320583019e-13 | C38: 7.320583019e-13 | D38: 5.735363204e-14 | F38: 6.464030604e-14 | G38: =(F39-F37)/(A39-A37) -> 4.907008085e-15 | H38: 5.493780245e-15 | K38: 1.266960896e-11
A39: 300 | B39: 1.500684843e-12 | C39: 1.500684843e-12 | D39: 1.157077777e-13 | F39: 1.299704996e-13 | G39: =(F40-F38)/(A40-A38) -> 9.705030334e-15 | H39: 1.082954584e-14 | K39: 2.551761859e-11
A40: 310 | B40: 3.046213857e-12 | C40: 3.046213857e-12 | D40: 2.311128109e-13 | F40: 2.587409127e-13 | G40: =(F41-F39)/(A41-A39) -> 1.900111463e-14 | H40: 2.113343796e-14 | K40: 5.088666444e-11
A41: 320 | B41: 6.122941061e-12 | C41: 6.122941061e-12 | D41: 4.570302513e-13 | F41: 5.099927921e-13 | G41: =(F42-F40)/(A42-A40) -> 3.682649224e-14 | H41: 4.082705989e-14 | K41: 1.004742856e-10
A42: 330 | B42: 1.218681888e-11 | C42: 1.218681888e-11 | D42: 8.947978549e-13 | F42: 9.952707576e-13 | G42: =(F43-F41)/(A43-A41) -> 7.065414046e-14 | H42: 7.808022407e-14 | K42: 1.964233692e-10 | L42: Extend the spreadsheet to longer columns of data by inserting rows as needed and the dragging the last row before the insertion for columns C through J.
A43: 340 | B43: 2.401889816e-11 | C43: 2.401889816e-11 | D43: 1.734457069e-12 | F43: 1.923075601e-12 | G43: =(F44-F42)/(A44-A42) -> 1.341861231e-13 | H43: 1.47824283e-13 | K43: 3.802059048e-10
A44: 350 | B44: 4.687596027e-11 | C44: 4.687596027e-11 | D44: 3.328590412e-12 | F44: 3.67899322e-12 | G44: =(F45-F43)/(A45-A43) -> 2.522707454e-13 | H44: 2.770504908e-13 | K44: 7.286722219e-10
A45: 360 | B45: 9.05907064e-11 | C45: 9.05907064e-11 | D45: 6.324334986e-12 | F45: 6.968490509e-12 | G45: =(F46-F44)/(A46-A44) -> 4.694743493e-13 | H45: 5.140163454e-13 | K45: 1.382717335e-09
A46: 370 | B46: 1.7336266e-10 | C46: 1.7336266e-10 | D46: 1.189670165e-11 | F46: 1.306848021e-11 | G46: =(F47-F45)/(A47-A45) -> 8.648459374e-13 | H46: 9.440523133e-13 | K46: 2.597901134e-09
A47: 380 | B47: 3.285247394e-10 | C47: 3.285247394e-10 | D47: 2.215618253e-11 | F47: 2.426540926e-11 | G47: =(F48-F46)/(A48-A46) -> 1.577043029e-12 | H47: 1.716375789e-12 | K47: 4.832813415e-09
A48: 390 | B48: 6.164863107e-10 | C48: 6.164863107e-10 | D48: 4.085257031e-11 | F48: 4.460934078e-11 | G48: =(F49-F47)/(A49-A47) -> 2.84657116e-12 | H48: 3.089027212e-12 | K48: 8.901553616e-09
A49: 400 | B49: 1.145576146e-09 | C49: 1.145576146e-09 | D49: 7.457603998e-11 | F49: 8.119683245e-11 | G49: =(F50-F48)/(A50-A48) -> 5.085923501e-12 | H49: 5.503256344e-12 | K49: 1.623379837e-08
A50: 410 | B50: 2.10800711e-09 | C50: 2.10800711e-09 | D50: 1.347826795e-10 | F50: 1.463278108e-10 | G50: =(F51-F49)/(A51-A49) -> 8.994607213e-12 | H50: 9.705139438e-12 | K50: 2.931319864e-08
A51: 420 | B51: 3.841229736e-09 | C51: 3.841229736e-09 | D51: 2.411698442e-10 | F51: 2.610889767e-10 | G51: =(F52-F50)/(A52-A50) -> 1.574541983e-11 | H51: 1.69419328e-11 | K51: 5.240770921e-08
A52: 430 | B52: 6.931403995e-09 | C52: 6.931403995e-09 | D52: 4.272335389e-10 | F52: 4.612362073e-10 | G52: =(F53-F51)/(A53-A51) -> 2.728228434e-11 | H52: 2.927508048e-11 | K52: 9.277185042e-08
A53: 440 | B53: 1.238590051e-08 | C53: 1.238590051e-08 | D53: 7.493079072e-10 | F53: 8.067346634e-10 | G53: =(F54-F52)/(A54-A52) -> 4.679033344e-11 | H53: 5.007278352e-11 | K53: 1.626022353e-07
A54: 450 | B54: 2.191756214e-08 | C54: 2.191756214e-08 | D54: 1.3010893e-09 | F54: 1.397042876e-09 | G54: =(F55-F53)/(A55-A53) -> 7.942818288e-11 | H54: 8.477505197e-11 | K54: 2.821799985e-07 | M54: Tom O'Haver (toh@umd.edu), Version 3, July 2018
A55: 460 | B55: 3.840768652e-08 | C55: 3.840768652e-08 | D55: 2.236684996e-09 | F55: 2.395298321e-09 | G55: =(F56-F54)/(A56-A54) -> 1.334535087e-10 | H55: 1.420662569e-10 | K55: 4.848590852e-07
A56: 470 | B56: 6.665126206e-08 | C56: 6.665126206e-08 | D56: 3.806733992e-09 | F56: 4.06611305e-09 | G56: =(F57-F55)/(A57-A55) -> 2.219298273e-10 | H56: 2.356480359e-10 | K56: 8.248872987e-07
A57: 480 | B57: 1.145423664e-07 | C57: 1.145423664e-07 | D57: 6.414299219e-09 | F57: 6.833894867e-09 | G57: =(F58-F56)/(A58-A56) -> 3.652789805e-10 | H57: 3.868831231e-10 | K57: 1.389516268e-06
A58: 490 | B58: 1.949372464e-07 | C58: 1.949372464e-07 | D58: 1.070024704e-08 | F58: 1.137169266e-08 | G58: =(F59-F57)/(A59-A57) -> 5.950447041e-10 | H58: 6.286825963e-10 | K58: 2.317516142e-06
A59: 500 | B59: 3.285473071e-07 | C59: 3.285473071e-07 | D59: 1.767197735e-08 | F59: 1.873478895e-08 | G59: =(F60-F58)/(A60-A58) -> 9.593619965e-10 | H59: 1.01113914e-09 | K59: 3.827120934e-06
A60: 510 | B60: 5.483767934e-07 | C60: 5.483767934e-07 | D60: 2.889495407e-08 | F60: 3.055893259e-08 | G60: =(F61-F59)/(A61-A59) -> 1.530787861e-09 | H60: 1.609569939e-09 | K60: 6.257661449e-06
A61: 520 | B61: 9.064463885e-07 | C61: 9.064463885e-07 | D61: 4.677384488e-08 | F61: 4.935054617e-08 | G61: =(F62-F60)/(A62-A60) -> 2.417342038e-09 | H61: 2.535825009e-09 | K61: 1.013077278e-05
A62: 530 | B62: 1.483853691e-06 | C62: 1.483853691e-06 | D62: 7.495954085e-08 | F62: 7.890577335e-08 | G62: =(F63-F61)/(A63-A61) -> 3.7778281e-09 | H62: 3.95393603e-09 | K62: 1.623917254e-05
A63: 540 | B63: 2.405637205e-06 | C63: 2.405637205e-06 | D63: 1.189301668e-07 | F63: 1.249071082e-07 | G63: =(F64-F62)/(A64-A62) -> 5.842745882e-09 | H63: 6.10141667e-09 | K63: 2.577366647e-05
A64: 550 | B64: 3.862457028e-06 | C64: 3.862457028e-06 | D64: 1.868085581e-07 | F64: 1.95760691e-07 | G64: =(F65-F63)/(A65-A63) -> 8.942346815e-09 | H64: 9.317758236e-09 | K64: 4.050229924e-05
A65: 560 | B65: 6.141808368e-06 | C65: 6.141808368e-06 | D65: 2.904954809e-07 | F65: 3.037540445e-07 | G65: =(F66-F64)/(A66-A64) -> 1.354359343e-08 | H65: 1.408186288e-08 | K65: 6.301943406e-05
A66: 570 | B66: 9.672366645e-06 | C66: 9.672366645e-06 | D66: 4.472166579e-07 | F66: 4.666325596e-07 | G66: =(F67-F65)/(A67-A65) -> 2.029791782e-08 | H66: 2.106027448e-08 | K66: 9.708694818e-05
A67: 580 | B67: 1.508614153e-05 | C67: 1.508614153e-05 | D67: 6.816014418e-07 | F67: 7.097124009e-07 | G67: =(F68-F66)/(A68-A66) -> 3.010166886e-08 | H67: 3.11680428e-08 | K67: 0.0001480944959
A68: 590 | B68: 2.330439548e-05 | C68: 2.330439548e-05 | D68: 1.028430062e-06 | F68: 1.068665937e-06 | G68: =(F69-F67)/(A69-A67) -> 4.417091567e-08 | H68: 4.564381013e-08 | K68: 0.0002236705948
A69: 600 | B69: 3.565474276e-05 | C69: 3.565474276e-05 | D69: 1.536202182e-06 | F69: 1.593130714e-06 | G69: =(F70-F68)/(A70-A68) -> 6.413174032e-08 | H69: 6.614014975e-08 | K69: 0.000334480627
A70: 610 | B70: 5.402843912e-05 | C70: 5.402843912e-05 | D70: 2.271688432e-06 | F70: 2.351300743e-06 | G70: =(F71-F69)/(A71-A69) -> 9.212620269e-08 | H70: 9.482920919e-08 | K70: 0.0004952509804
A71: 620 | B71: 8.10885114e-05 | C71: 8.10885114e-05 | D71: 3.325623928e-06 | F71: 3.435654768e-06 | G71: =(F72-F70)/(A72-A70) -> 1.309326911e-07 | H71: 1.345222202e-07 | K71: 0.0007260595169
A72: 630 | B72: 0.0001205409177 | C72: 0.0001205409177 | D72: 4.819682785e-06 | F72: 4.969954564e-06 | G72: =(F73-F71)/(A73-A71) -> 1.840972962e-07 | H72: 1.887993494e-07 | K72: 0.001053930113
A73: 640 | B73: 0.0001774821671 | C73: 0.0001774821671 | D73: 6.91482876e-06 | F73: 7.117600691e-06 | G73: =(F74-F72)/(A74-A72) -> 2.560701141e-07 | H73: 2.621436329e-07 | K73: 0.001514761762
A74: 650 | B74: 0.0002588374929 | C74: =B74-$C$7 -> 0.0002588374929 | D74: 9.82106246e-06 | F74: 1.009135685e-05 | G74: =(F75-F73)/(A75-A73) -> 3.523370071e-07 | H74: 3.600693911e-07 | K74: =C74-($K$5*H74)+($K$4*F74) -> 0.00215560909
A75: 660 | B75: 0.0003739034163 | C75: 0.0003739034163 | D75: =(B76-B74)/(A76-A74) -> 1.38084737e-05 | F75: 1.416434083e-05 | G75: =(F76-F74)/(A76-A74) -> 4.795334361e-07 | H75: 4.892316563e-07 | K75: 0.003037309611
A76: 670 | B76: 0.0005350069669 | C76: 0.0005350069669 | D76: 1.921935347e-05 | F76: 1.968202557e-05 | G76: =(F77-F75)/(A77-A75) -> 6.45522746e-07 | H76: 6.574990089e-07 | K76: 0.004237422316
A77: 680 | B77: 0.0007582904857 | C77: 0.0007582904857 | D77: 2.648092163e-05 | F77: 2.707479575e-05 | G77: =(F78-F76)/(A78-A76) -> 8.594171074e-07 | H77: 8.739681668e-07 | K77: 0.005853401498 | M77: Type in (or Copy and Paste) any data you like into column A (X) and B (Y).
A78: 690 | B78: 0.0010646254 | C78: 0.0010646254 | D78: 3.611798628e-05 | F78: 3.687036772e-05 | G78: =(F79-F77)/(A79-A77) -> 1.131515707e-06 | H78: 1.14889523e-06 | K78: 0.008005879042 | M78: Change the smooth width by changing the 17 red coefficients in row 5, columns K through AA.
A79: 700 | B79: 0.001480650211 | C79: 0.001480650211 | D79: 4.876457667e-05 | F79: 4.970510988e-05 | G79: =(F80-F78)/(A80-A78) -> 1.4731324e-06 | H79: 1.4935163e-06 | K79: 0.01084186905 | M79: Extend the spreadsheet to longer columns of data by dragging the last row of columns A through H down as needed.
A80: 710 | B80: 0.002039916933 | C80: 0.002039916933 | D80: 6.517329991e-05 | F80: 6.633301572e-05 | G80: =(F81-F79)/(A81-A79) -> 1.896284693e-06 | H80: 1.919730035e-06 | K80: 0.01453764331
A81: 720 | B81: 0.00278411621 | C81: 0.00278411621 | D81: 8.62208864e-05 | F81: 8.763080374e-05 | G81: =(F82-F80)/(A82-A80) -> 2.413218355e-06 | H81: 2.439617374e-06 | K81: 0.01930095907
A82: 730 | B82: 0.003764334661 | C82: 0.003764334661 | D82: 0.0001129081422 | F82: =(D74*$M$6+D75*$N$6+D76*$O$6+D77*$P$6+D78*$Q$6+D79*$R$6+D80*$S$6+D81*$T$6+D82*$U$6+D83*$V$6+D84*$W$6+D85*$X$6+D86*$Y$6+D87*$Z$6+D88*$AA$6+D89*$AB$6+D90*$AC$6)/SUM($M$6:$AC$6) -> 0.0001145973828 | G82: =(F83-F81)/(A83-A81) -> 3.035748096e-06 | H82: 3.064779883e-06 | K82: 0.02537225871
A83: 740 | B83: 0.005042279054 | C83: 0.005042279054 | D83: 0.0001463523604 | F83: 0.0001483457657 | G83: =(F84-F82)/(A84-A82) -> 3.774404986e-06 | H83: 3.805488542e-06 | K83: 0.03302441142
A84: 750 | B84: 0.006691381868 | C84: 0.006691381868 | D84: 0.0001877701996 | F84: 0.0001900854825 | G84: =(F85-F83)/(A85-A83) -> 4.637396101e-06 | H84: 4.669649541e-06 | K84: 0.04256054034
A85: 760 | B85: 0.008797683047 | C85: 0.008797683047 | D85: 0.0002384491705 | F85: 0.0002410936877 | G85: =(F86-F84)/(A86-A84) -> 5.629400975e-06 | H85: 5.661612517e-06 | K85: 0.05430948416
A86: 770 | B86: 0.01146036528 | C86: 0.01146036528 | D86: 0.0002997062101 | F86: 0.000302673502 | G86: =(F87-F85)/(A87-A85) -> 6.750252017e-06 | H86: 6.780868934e-06 | K86: 0.06861849024
A87: 780 | B87: 0.01479180725 | C87: 0.01479180725 | D87: 0.0003728324174 | F87: 0.000376098728 | G87: =(F88-F86)/(A88-A86) -> 7.993570728e-06 | H87: 8.020712382e-06 | K87: 0.08584283426
A88: 790 | B88: 0.01891701363 | C88: 0.01891701363 | D88: 0.0004590238671 | F88: 0.0004625449166 | G88: =(F89-F87)/(A89-A87) -> 9.345456056e-06 | H88: 9.366956424e-06 | K88: 0.1063322152
A89: 800 | B89: 0.02397228459 | C89: 0.02397228459 | D89: 0.0005592995147 | F89: 0.0005630078491 | G89: =(F90-F88)/(A90-A88) -> 1.078334286e-05 | H89: 1.079682642e-05 | K89: 0.1304139827
A90: 810 | B90: 0.03010300392 | C90: 0.03010300392 | D90: 0.0006744085001 | F90: 0.0006782117737 | G90: =(F91-F89)/(A91-A89) -> 1.227516391e-05 | H90: 1.227815644e-05 | K90: 0.1583735131
A91: 820 | B91: 0.03746045459 | C91: 0.03746045459 | D91: 0.00080473058 | F91: 0.0008085111274 | G91: =(F92-F90)/(A92-A90) -> 1.377895509e-05 | H91: 1.376902775e-05 | K91: 0.1904323426
A92: 830 | B92: 0.04619761552 | C92: 0.04619761552 | D92: 0.0009501748495 | F92: 0.0009537908756 | G92: =(F93-F91)/(A93-A91) -> 1.52430369e-05 | H92: =(G84*$M$6+G85*$N$6+G86*$O$6+G87*$P$6+G88*$Q$6+G89*$R$6+G90*$S$6+G91*$T$6+G92*$U$6+G93*$V$6+G94*$W$6+G95*$X$6+G96*$Y$6+G97*$Z$6+G98*$AA$6+G99*$AB$6+G100*$AC$6)/SUM($M$6:$AC$6) -> 1.521797842e-05 | K92: 0.2267249818
A93: 840 | B93: 0.05646395158 | C93: 0.05646395158 | D93: 0.001110083223 | F93: 0.001113371865 | G93: =(F94-F92)/(A94-A92) -> 1.660688476e-05 | H93: 1.656489258e-05 | K93: 0.2672756314
A94: 850 | B94: 0.06839927999 | C94: 0.06839927999 | D94: 0.001283146166 | F94: 0.001285928571 | G94: =(F95-F93)/(A95-A93) -> 1.78027639e-05 | H94: 1.774264144e-05 | K94: 0.3119762833
A95: 860 | B95: 0.08212687489 | C95: 0.08212687489 | D95: 0.001467338729 | F95: 0.001469427143 | G95: =(F96-F94)/(A96-A94) -> 1.87581532e-05 | H95: 1.867949725e-05 | K95: 0.3605678735
A96: 870 | B96: 0.09774605457 | C96: 0.09774605457 | D96: 0.00165988495 | F96: 0.001661091635 | G96: =(F97-F95)/(A97-A95) -> 1.93989187e-05 | H96: 1.930227911e-05 | K96: 0.4126262305
A97: 880 | B97: 0.1153245739 | C97: 0.1153245739 | D97: 0.00185725791 | F97: 0.001857405518 | G97: =(F98-F96)/(A98-A96) -> 1.965312585e-05 | H97: 1.95401192e-05 | K97: 0.4675545063
A98: 890 | B98: 0.1348912128 | C98: 0.1348912128 | D98: 0.0020552213 | F98: 0.002054154152 | G98: =(F99-F97)/(A99-A97) -> 1.945530641e-05 | H98: 1.932866689e-05 | K98: 0.5245835685
A99: 900 | B99: 0.1564289999 | C99: 0.1564289999 | D99: 0.002248916098 | F99: 0.002246511646 | G99: =(F100-F98)/(A100-A98) -> 1.875092889e-05 | H99: 1.861448306e-05 | K99: 0.5827814633
A100: 910 | B100: 0.1798695347 | C100: 0.1798695347 | D100: 0.002432993088 | F100: 0.00242917273 | G100: =(F101-F99)/(A101-A99) -> 1.750076803e-05 | H100: 1.735932559e-05 | K100: 0.641072553
A101: 920 | B101: 0.2050888617 | C101: 0.2050888617 | D101: 0.002601788645 | F101: 0.002596527006 | G101: =(F102-F100)/(A102-A100) -> 1.568483739e-05 | H101: 1.554399687e-05 | K101: 0.6982663
A102: 930 | B102: 0.2319053076 | C102: 0.2319053076 | D102: 0.002749537647 | F102: 0.002742869477 | G102: =(F103-F101)/(A103-A101) -> 1.330554466e-05 | H102: 1.317142094e-05 | K102: 0.75309497
A103: 940 | B103: 0.2600796146 | C103: 0.2600796146 | D103: 0.00287061397 | F103: 0.0028626379 | G103: =(F104-F102)/(A104-A102) -> 1.038975705e-05 | H103: 1.026864545e-05 | K103: 0.8042588089
A104: 950 | B104: 0.289317587 | C104: 0.289317587 | D104: 0.002959786012 | F104: 0.002950664619 | G104: =(F105-F103)/(A105-A103) -> 6.989523033e-06 | H104: 6.887522008e-06 | K104: 0.850476578
A105: 960 | B105: 0.3192753348 | C105: 0.3192753348 | D105: 0.003012472481 | F105: 0.00300242836 | G105: =(F106-F104)/(A106-A104) -> 3.181284912e-06 | H105: 3.103905148e-06 | K105: 0.890538775
A106: 970 | B106: 0.3495670366 | C106: 0.3495670366 | D106: 0.003024982467 | F106: 0.003014290317 | G106: =(F107-F105)/(A107-A105) -> -9.364722676e-07 | H106: -9.846815756e-07 | K106: 0.9233604885
A107: 980 | B107: 0.3797749842 | C107: 0.3797749842 | D107: 0.002994723852 | F107: 0.002983698915 | G107: =(F108-F106)/(A108-A106) -> -5.24706668e-06 | H107: -5.262843009e-06 | K107: 0.9480306699
A108: 990 | B108: 0.4094615137 | C108: 0.4094615137 | D108: 0.002920365488 | F108: 0.002909348983 | G108: =(F109-F107)/(A109-A107) -> -9.620766409e-06 | H108: -9.602382121e-06 | K108: 0.9638546981
A109: 1000 | B109: 0.4381822939 | C109: 0.4381822939 | D109: 0.002801941104 | F109: 0.002791283587 | G109: =(F110-F108)/(A110-A108) -> -1.392092899e-05 | H109: -1.386833985e-05 | K109: 0.9703874517
A110: 1010 | B110: 0.4655003358 | C110: 0.4655003358 | D110: 0.002640886651 | F110: 0.002630930403 | G110: =(F111-F109)/(A111-A109) -> -1.8010735e-05 | H110: -1.792561448e-05 | K110: 0.9674546838
A111: 1020 | B111: 0.491000027 | C111: 0.491000027 | D111: 0.002440007208 | F111: 0.002431068887 | G111: =(F112-F110)/(A112-A110) -> -2.176005894e-05 | H111: -2.164571373e-05 | K111: 0.955161256
A112: 1030 | B112: 0.5143004799 | C112: 0.5143004799 | D112: 0.00220337448 | F112: 0.002195729225 | G112: =(F113-F111)/(A113-A111) -> -2.505200207e-05 | H112: -2.491317456e-05 | K112: 0.9338856819
A113: 1040 | B113: 0.5350675165 | C113: 0.5350675165 | D113: 0.001936160731 | F113: 0.001930028846 | G113: =(F114-F112)/(A114-A112) -> -2.778863517e-05 | H113: -2.763120868e-05 | K113: 0.9042613691
A114: 1050 | B114: 0.5530236946 | C114: 0.5530236946 | D114: 0.00164441944 | F114: 0.001639956521 | G114: =(F115-F113)/(A115-A113) -> -2.98955623e-05 | H114: -2.972619323e-05 | K114: 0.8671458515
A115: 1060 | B115: 0.5679559054 | C115: 0.5679559054 | D115: 0.001334826474 | F115: 0.0013321176 | G115: =(F116-F114)/(A116-A114) -> -3.132501316e-05 | H115: -3.115072017e-05 | K115: 0.8235800991
A116: 1070 | B116: 0.579720224 | C116: 0.579720224 | D116: 0.00101439801 | F116: 0.001013456258 | G116: =(F117-F115)/(A117-A115) -> -3.205729204e-05 | H116: -3.188503504e-05 | K116: 0.7747405983
A117: 1080 | B117: 0.5882438656 | C117: 0.5882438656 | D117: 0.0006902025382 | F117: 0.0006909717587 | G117: =(F118-F116)/(A118-A116) -> -3.210054292e-05 | H117: -3.19368247e-05 | K117: 0.7218872871
A118: 1090 | B118: 0.5935242748 | C118: 0.5935242748 | D118: 0.0003690839481 | F118: 0.0003714453997 | G118: =(F119-F117)/(A119-A117) -> -3.14889209e-05 | H118: -3.133944032e-05 | K118: 0.6663105565
A119: 1100 | B119: 0.5956255445 | C119: 0.5956255445 | D119: 5.741116416e-05 | F119: 6.119334063e-05 | G119: =(F120-F118)/(A120-A118) -> -3.027937654e-05 | H119: -3.014875657e-05 | K119: 0.609280412
A120: 1110 | B120: 0.5946724981 | C120: 0.5946724981 | D120: -0.0002391329139 | F120: -0.0002341421311 | G120: =(F121-F119)/(A121-A119) -> -2.85473523e-05 | H120: -2.84389582e-05 | K120: 0.5520005473
A121: 1120 | B121: 0.5908428862 | C121: 0.5908428862 | D121: -0.0005157138608 | F121: -0.0005097537054 | G121: =(F122-F120)/(A122-A120) -> -2.638175165e-05 | H121: -2.629760583e-05 | K121: 0.4955695477
A122: 1130 | B122: 0.5843582209 | C122: 0.5843582209 | D122: -0.0007684541862 | F122: -0.0007617771642 | G122: =(F123-F121)/(A123-A121) -> -2.387956772e-05 | H122: -2.382035946e-05 | K122: 0.4409507947
A123: 1140 | B123: 0.5754738025 | C123: 0.5754738025 | D123: -0.0009944864236 | F123: -0.0009873450599 | G123: =(F124-F122)/(A124-A122) -> -2.114055076e-05 | H123: -2.110573107e-05 | K123: 0.3889519271
A124: 1150 | B124: 0.5644684924 | C124: 0.5644684924 | D124: -0.001191953206 | F124: -0.001184588179 | G124: =(F125-F123)/(A125-A123) -> -1.826225503e-05 | H124: -1.825020105e-05 | K124: 0.340214009
A125: 1160 | B125: 0.5516347384 | C125: 0.5516347384 | D125: -0.001359959882 | F125: -0.001352590161 | G125: =(F126-F124)/(A126-A124) -> -1.533574338e-05 | H125: -1.534397281e-05 | K125: 0.2952099117
A126: 1170 | B126: 0.5372692948 | C126: 0.5372692948 | D126: -0.001498487672 | F126: -0.001491303047 | G126: =(F127-F125)/(A127-A125) -> -1.244214946e-05 | H126: -1.246756378e-05 | K126: 0.2542508787
A127: 1180 | B127: 0.5216649849 | C127: 0.5216649849 | D127: -0.001608276961 | F127: -0.00160143315 | G127: =(F128-F126)/(A128-A126) -> -9.650212815e-06 | H127: -9.689348433e-06 | K127: 0.2174998502
A128: 1190 | B128: 0.5051037555 | C128: 0.5051037555 | D128: -0.001690691004 | F128: -0.001684307303 | G128: =(F129-F127)/(A129-A127) -> -7.014818644e-06 | H128: -7.064087513e-06 | K128: 0.1849898747
A129: 1200 | B129: 0.4878511649 | C129: 0.4878511649 | D129: -0.001747570244 | F129: -0.001741729523 | G129: =(F130-F128)/(A130-A128) -> -4.576499951e-06 | H129: -4.632404557e-06 | K129: 0.1566458468
A130: 1210 | B130: 0.4701523507 | C130: 0.4701523507 | D130: -0.001781086599 | F130: -0.001775837302 | G130: =(F131-F129)/(A131-A129) -> -2.361799681e-06 | H130: -2.421111733e-06 | K130: 0.1323078475
A131: 1220 | B131: 0.4522294329 | C131: 0.4522294329 | D131: -0.001793605768 | F131: -0.001788965516 | G131: =(F132-F130)/(A132-A130) -> -3.84347616e-07 | H131: -4.442442452e-07 | K131: 0.1117545209
A132: 1230 | B132: 0.4342802353 | C132: 0.4342802353 | D132: -0.00178756393 | F132: -0.001783524255 | G132: =(F133-F131)/(A133-A131) -> 1.353517933e-06 | H132: 1.295362434e-06 | K132: 0.09472515259
A133: 1240 | B133: 0.4164781543 | C133: 0.4164781543 | D133: -0.00176536339 | F133: -0.001761895158 | G133: =(F134-F132)/(A134-A132) -> 2.858761488e-06 | H133: 2.80412679e-06 | K133: 0.08093939982
A134: 1250 | B134: 0.3989729675 | C134: 0.3989729675 | D134: -0.00172928992 | F134: -0.001726349025 | G134: =(F135-F133)/(A135-A133) -> 4.145466251e-06 | H134: 4.095575659e-06 | K134: 0.07011392462
A135: 1260 | B135: 0.3818923559 | C135: 0.3818923559 | D135: -0.00168145287 | F135: -0.001678985833 | G135: =(F136-F134)/(A136-A134) -> 5.232608643e-06 | H135: 5.188151313e-06 | K135: 0.0619754789
A136: 1270 | B136: 0.3653439101 | C136: 0.3653439101 | D136: -0.001623747671 | F136: -0.001621696852 | G136: =(F137-F135)/(A137-A135) -> 6.141921715e-06 | H136: 6.103100587e-06 | K136: 0.05627026154
A137: 1280 | B137: 0.3494174025 | C137: 0.3494174025 | D137: -0.001557839196 | F137: -0.001556147398 | G137: =(F138-F136)/(A138-A136) -> 6.895950272e-06 | H137: 6.86254885e-06 | K137: 0.05276960216
A138: 1290 | B138: 0.3341871262 | C138: =B138-$C$7 -> 0.3341871262 | D138: -0.00148516353 | F138: -0.001483777847 | G138: =(F139-F137)/(A139-A137) -> 7.516373141e-06 | H138: 7.487834799e-06 | K138: =C138-($K$5*H138)+($K$4*F138) -> 0.05127221786
A139: 1300 | B139: 0.3197141319 | C139: 0.3197141319 | D139: =(B140-B138)/(A140-A138) -> -0.001406945131 | F139: -0.001405819935 | G139: =(F140-F138)/(A140-A138) -> 8.022642642e-06 | H139: 7.998156955e-06 | K139: 0.05160343667
A140: 1310 | B140: 0.3060482236 | C140: 0.3060482236 | D140: -0.001324225951 | F140: -0.001323324994 | G140: =(F141-F139)/(A141-A139) -> 8.430969395e-06 | H140: 8.409560953e-06 | K140: 0.0536118885
A141: 1320 | B141: 0.2932296129 | C141: 0.2932296129 | D141: -0.001237902943 | F141: -0.001237200548 | G141: =(F142-F140)/(A142-A140) -> 8.753662381e-06 | H141: 8.734278431e-06 | K141: 0.05716423552
A142: 1330 | B142: 0.2812901647 | C142: 0.2812901647 | D142: -0.001148770354 | F142: -0.001148251746 | G142: =(F143-F141)/(A143-A141) -> 8.998819569e-06 | H142: 8.98041348e-06 | K142: 0.06213855427
A143: 1340 | B143: 0.2702542058 | C143: 0.2702542058 | D143: -0.001057563334 | F143: -0.001057224156 | G143: =(F144-F142)/(A144-A142) -> 9.1703524e-06 | H143: 9.151960418e-06 | K143: 0.06841699716
A144: 1350 | B144: 0.260138898 | C144: 0.260138898 | D144: -0.0009649996033 | F144: -0.0009648446981 | G144: =(F145-F143)/(A145-A143) -> 9.268317303e-06 | H144: 9.249126264e-06 | K144: 0.07587835339
A145: 1360 | B145: 0.2509542137 | C145: 0.2509542137 | D145: -0.000871816252 | F145: -0.0008718578101 | G145: =(F146-F144)/(A146-A144) -> 9.289518049e-06 | H145: 9.268921795e-06 | K145: 0.08439110076
A146: 1370 | B146: 0.242702573 | C146: 0.242702573 | D146: -0.0007787991332 | F146: =(D138*$M$6+D139*$N$6+D140*$O$6+D141*$P$6+D142*$Q$6+D143*$R$6+D144*$S$6+D145*$T$6+D146*$U$6+D147*$V$6+D148*$W$6+D149*$X$6+D150*$Y$6+D151*$Z$6+D152*$AA$6+D153*$AB$6+D154*$AC$6)/SUM($M$6:$AC$6) -> -0.0007790543371 | G146: =(F147-F145)/(A147-A145) -> 9.228333779e-06 | H146: 9.205976068e-06 | K146: 0.09380749096
A147: 1380 | B147: 0.235378231 | C147: 0.235378231 | D147: -0.0006868028301 | F147: -0.0006872911345 | G147: =(F148-F146)/(A148-A146) -> 9.077718666e-06 | H147: 9.053520466e-06 | K147: 0.1039591394
A148: 1390 | B148: 0.2289665164 | C148: 0.2289665164 | D148: -0.0005967597447 | F148: -0.0005974999638 | G148: =(F149-F147)/(A149-A147) -> 8.830310754e-06 | H148: 8.804480147e-06 | K148: 0.114654498
A149: 1400 | B149: 0.2234430361 | C149: 0.2234430361 | D149: -0.0005096775356 | F149: -0.0005106849195 | G149: =(F150-F148)/(A150-A148) -> 8.479580415e-06 | H149: 8.452603898e-06 | K149: 0.1256784748
A150: 1410 | B150: 0.2187729657 | C150: 0.2187729657 | D150: -0.0004266248618 | F150: -0.0004279083555 | G150: =(F151-F149)/(A151-A149) -> 8.020944009e-06 | H150: 7.993558874e-06 | K150: 0.1367943296
A151: 1420 | B151: 0.2149105389 | C151: 0.2149105389 | D151: -0.0003487061628 | F151: -0.0003502660393 | G151: =(F152-F150)/(A152-A150) -> 7.452767065e-06 | H151: 7.425915666e-06 | K151: 0.1477478274
A152: 1430 | B152: 0.2117988424 | C152: 0.2117988424 | D152: -0.0002770269698 | F152: -0.0002788530142 | G152: =(F153-F151)/(A153-A151) -> 6.777184523e-06 | H152: 6.751952573e-06 | K152: 0.1582734771
A153: 1440 | B153: 0.2093699995 | C153: 0.2093699995 | D153: -0.0002126519546 | F153: -0.0002147223488 | G153: =(F154-F152)/(A154-A152) -> 6.000674181e-06 | H153: 5.978216596e-06 | K153: 0.1681025291
A154: 1450 | B154: 0.2075458033 | C154: 0.2075458033 | D154: -0.0001565585164 | F154: -0.0001588395306 | G154: =(F155-F153)/(A155-A153) -> 5.1343335e-06 | H154: 5.115792545e-06 | K154: 0.1769722714
A155: 1460 | B155: 0.2062388292 | C155: 0.2062388292 | D155: -0.0001095891351 | F155: -0.0001120356788 | G155: =(F156-F154)/(A156-A154) -> 4.193828999e-06 | H155: 4.180250465e-06 | K155: 0.1846360507
A156: 1470 | B156: 0.2053540206 | C156: 0.2053540206 | D156: -7.24059287e-05 | F156: -7.496295063e-05 | G156: =(F157-F155)/(A157-A155) -> 3.199010362e-06 | H156: =(G148*$M$6+G149*$N$6+G150*$O$6+G151*$P$6+G152*$Q$6+G153*$R$6+G154*$S$6+G155*$T$6+G156*$U$6+G157*$V$6+G158*$W$6+G159*$X$6+G160*$Y$6+G161*$Z$6+G162*$AA$6+G163*$AB$6+G164*$AC$6)/SUM($M$6:$AC$6) -> 3.191264042e-06 | K156: 0.1908733716
A157: 1480 | B157: 0.2047907106 | C157: 0.2047907106 | D157: -4.545081e-05 | F157: -4.805547159e-05 | G157: =(F158-F156)/(A158-A156) -> 2.173206444e-06 | H157: 2.17191714e-06 | K157: 0.1954994
A158: 1490 | B158: 0.2044450044 | C158: 0.2044450044 | D158: -2.891433764e-05 | F158: -3.149882175e-05 | G158: =(F159-F157)/(A159-A157) -> 1.142245309e-06 | H158: 1.147740005e-06 | K158: 0.1983732187
A159: 1500 | B159: 0.2042124239 | C159: 0.2042124239 | D159: -2.271580171e-05 | F159: -2.521056542e-05 | G159: =(F160-F158)/(A160-A158) -> 1.332629585e-07 | H159: 1.455386111e-07 | K159: 0.1994042551
A160: 1510 | B160: 0.2039906884 | C160: 0.2039906884 | D160: -2.649632061e-05 | F160: -2.883356258e-05 | G160: =(F161-F159)/(A161-A159) -> -8.266167813e-07 | H160: -8.079020521e-07 | K160: 0.1985564215
A161: 1520 | B161: 0.2036824974 | C161: 0.2036824974 | D161: -3.96258074e-05 | F161: -4.174290104e-05 | G161: =(F162-F160)/(A162-A160) -> -1.711637604e-06 | H161: -1.687149091e-06 | K161: 0.1958496672
A162: 1530 | B162: 0.2031981723 | C162: 0.2031981723 | D162: -6.122366876e-05 | F162: -6.306631466e-05 | G162: =(F163-F161)/(A163-A161) -> -2.498704373e-06 | H162: -2.469392393e-06 | K162: 0.191358818
A163: 1540 | B163: 0.2024580241 | C163: 0.2024580241 | D163: -9.019211374e-05 | F163: -9.171698851e-05 | G163: =(F164-F162)/(A164-A162) -> -3.168523223e-06 | H163: -3.135565009e-06 | K163: 0.1852097757
A164: 1550 | B164: 0.20139433 | C164: 0.20139433 | D164: -0.0001252600578 | F164: -0.0001264367791 | G164: =(F165-F163)/(A165-A163) -> -3.706509217e-06 | H164: -3.671235984e-06 | K164: 0.1775733262
A165: 1560 | B165: 0.1999528229 | C165: 0.1999528229 | D165: -0.0001650348871 | F165: -0.0001658471728 | G165: =(F166-F164)/(A166-A164) -> -4.10340228e-06 | H165: -4.067217543e-06 | K165: 0.1686569714
A166: 1570 | B166: 0.1980936322 | C166: 0.1980936322 | D166: -0.0002080588593 | F166: -0.0002085048247 | G166: =(F167-F165)/(A167-A165) -> -4.355556395e-06 | H166: -4.319852166e-06 | K166: 0.1586953177
A167: 1580 | B167: 0.1957916457 | C167: 0.1957916457 | D167: -0.0002528666932 | F167: -0.0002529583007 | G167: =(F168-F166)/(A168-A166) -> -4.464893592e-06 | H167: -4.430971016e-06 | K167: 0.1479396348
A168: 1590 | B168: 0.1930362984 | C168: 0.1930362984 | D168: -0.0002980409573 | F168: -0.0002978026966 | G168: =(F169-F167)/(A169-A167) -> -4.438540485e-06 | H168: -4.407540756e-06 | K168: 0.1366472255
A169: 1600 | B169: 0.1898308266 | C169: 0.1898308266 | D169: -0.0003422621785 | F169: -0.0003417291104 | G169: =(F170-F168)/(A170-A168) -> -4.288188462e-06 | H169: -4.261038662e-06 | K169: 0.1250712216
A170: 1610 | B170: 0.1861910548 | C170: 0.1861910548 | D170: -0.0003843511274 | F170: -0.0003835664658 | G170: =(F171-F169)/(A171-A169) -> -4.02923724e-06 | H170: -4.006614159e-06 | K170: 0.1134513541
A171: 1620 | B171: 0.182143804 | C171: 0.182143804 | D171: -0.0004233014299 | F171: -0.0004223138552 | G171: =(F172-F170)/(A172-A170) -> -3.679793693e-06 | H171: -3.662106945e-06 | K171: 0.1020061409
A172: 1630 | B172: 0.1777250262 | C172: 0.1777250262 | D172: -0.0004583014338 | F172: -0.0004571623397 | G172: =(F173-F171)/(A173-A171) -> -3.259603153e-06 | H172: -3.246997182e-06 | K172: 0.09092680114
A173: 1640 | B173: 0.1729777754 | C173: 0.1729777754 | D173: -0.0004887450612 | F173: -0.0004875059183 | G173: =(F174-F172)/(A174-A172) -> -2.788988729e-06 | H173: -2.781361742e-06 | K173: 0.08037306954
A174: 1650 | B174: 0.167950125 | C174: 0.167950125 | D174: -0.0005142321169 | F174: -0.0005129421142 | G174: =(F175-F173)/(A175-A173) -> -2.287866358e-06 | H174: -2.284903033e-06 | K174: 0.07047093739
A175: 1660 | B175: 0.162693133 | C175: 0.162693133 | D175: -0.0005345591618 | F175: -0.0005332632455 | G175: =(F176-F174)/(A176-A174) -> -1.774890686e-06 | H175: -1.776104698e-06 | K175: 0.06131222278
A176: 1670 | B176: 0.1572589417 | C176: 0.1572589417 | D176: -0.0005497025412 | F176: -0.000548439928 | G176: =(F177-F175)/(A177-A175) -> -1.266771059e-06 | H176: -1.271553145e-06 | K176: 0.05295576532
A177: 1680 | B177: 0.1516990822 | C177: 0.1516990822 | D177: -0.0005597954676 | F177: -0.0005585986666 | G177: =(F178-F176)/(A178-A176) -> -7.777797739e-07 | H177: -7.854471404e-07 | K177: 0.04542996307
A178: 1690 | B178: 0.1460630324 | C178: 0.1460630324 | D178: -0.0005651011901 | F178: -0.0005639955234 | G178: =(F179-F177)/(A179-A177) -> -3.194579549e-07 | H178: -3.293012863e-07 | K178: 0.03873632301
A179: 1700 | B179: 0.1403970584 | C179: 0.1403970584 | D179: -0.000565984246 | F179: -0.0005649878257 | G179: =(F180-F178)/(A180-A178) -> 9.949053844e-08 | H179: 8.816547226e-08 | K179: 0.03285367952
A180: 1710 | B180: 0.1347433475 | C180: 0.1347433475 | D180: -0.0005628816209 | F180: -0.0005620057127 | G180: =(F181-F179)/(A181-A179) -> 4.731387671e-07 | H180: 4.609770193e-07 | K180: 0.02774274687
A181: 1720 | B181: 0.129139426 | C181: 0.129139426 | D181: -0.0005562753629 | F181: -0.0005555250504 | G181: =(F182-F180)/(A182-A180) -> 7.981400045e-07 | H181: 7.857120555e-07 | K181: 0.02335070478
A182: 1730 | B182: 0.1236178402 | C182: 0.1236178402 | D182: -0.0005466678548 | F182: -0.0005460429126 | G182: =(F183-F181)/(A183-A181) -> 1.073429446e-06 | H182: 1.061214792e-06 | K182: 0.01961556552
A183: 1740 | B183: 0.1182060689 | C183: 0.1182060689 | D183: -0.0005345605778 | F183: -0.0005340564615 | G183: =(F184-F182)/(A184-A182) -> 1.299860273e-06 | H183: 1.288239533e-06 | K183: 0.0164701297
A184: 1750 | B184: 0.1129266287 | C184: 0.1129266287 | D184: -0.0005204368356 | F184: -0.0005200457071 | G184: =(F185-F183)/(A185-A183) -> 1.47980814e-06 | H184: 1.469062624e-06 | K184: 0.01384539924
A185: 1760 | B185: 0.1077973322 | C185: 0.1077973322 | D185: -0.0005047485797 | F185: -0.0005044602987 | G185: =(F186-F184)/(A186-A184) -> 1.616773945e-06 | H185: 1.607091263e-06 | K185: 0.01167337546
A186: 1770 | B186: 0.1028316571 | C186: 0.1028316571 | D186: -0.0004879071998 | F186: -0.0004877102282 | G186: =(F187-F185)/(A187-A185) -> 1.715009024e-06 | H186: 1.706493116e-06 | K186: 0.009889222265
A187: 1780 | B187: 0.09803918817 | C187: 0.09803918817 | D187: -0.0004702779336 | F187: -0.0004701601182 | G187: =(F188-F186)/(A188-A186) -> 1.779180474e-06 | H187: 1.77186445e-06 | K187: 0.008432817645
A188: 1790 | B188: 0.0934260984 | C188: 0.0934260984 | D188: -0.0004521774058 | F188: -0.0004521266188 | G188: =(F189-F187)/(A189-A187) -> 1.81408783e-06 | H188: 1.807948131e-06 | K188: 0.007249748776
A189: 1800 | B189: 0.08899564006 | C189: 0.08899564006 | D189: -0.0004338737299 | F189: -0.0004338783616 | G189: =(F190-F188)/(A190-A188) -> 1.824436389e-06 | H189: 1.819407019e-06 | K189: 0.006291827196
A190: 1810 | B190: 0.0847486238 | C190: 0.0847486238 | D190: -0.0004155885809 | F190: -0.000415637891 | G190: =(F191-F189)/(A191-A189) -> 1.814667471e-06 | H190: 1.810653337e-06 | K190: 0.005517211577
A191: 1820 | B191: 0.08068386844 | C191: 0.08068386844 | D191: -0.0003975006722 | F191: -0.0003975850122 | G191: =(F192-F190)/(A192-A190) -> 1.788842017e-06 | H191: 1.78573069e-06 | K191: 0.004890228053
A192: 1830 | B192: 0.07679861036 | C192: 0.07679861036 | D192: -0.0003797501234 | F192: -0.0003798610506 | G192: =(F193-F191)/(A193-A191) -> 1.750571256e-06 | H192: 1.748242781e-06 | K192: 0.004380973734
A193: 1840 | B193: 0.07308886597 | C193: 0.07308886597 | D193: -0.0003624432835 | F193: -0.0003625735871 | G193: =(F194-F192)/(A194-A192) -> 1.702986595e-06 | H193: 1.7013212e-06 | K193: 0.003964780017
A194: 1850 | B194: 0.06954974469 | C194: 0.06954974469 | D194: -0.000345657658 | F194: -0.0003458013187 | G194: =(F195-F193)/(A195-A193) -> 1.648740355e-06 | H194: 1.647624104e-06 | K194: 0.003621600395
A195: 1860 | B195: 0.06617571281 | C195: 0.06617571281 | D195: -0.0003294466756 | F195: -0.00032959878 | G195: =(F196-F194)/(A196-A194) -> 1.59002911e-06 | H195: 1.589357693e-06 | K195: 0.00333537441
A196: 1870 | B196: 0.06296081117 | C196: 0.06296081117 | D196: -0.0003138441109 | F196: -0.0003140007365 | G196: =(F197-F195)/(A197-A195) -> 1.528632196e-06 | H196: 1.528313124e-06 | K196: 0.003093406456
A197: 1880 | B197: 0.05989883059 | C197: 0.05989883059 | D197: -0.0002988680488 | F197: -0.0002990261361 | G197: =(F198-F196)/(A198-A196) -> 1.465958994e-06 | H197: 1.465912515e-06 | K197: 0.002885786227
A198: 1890 | B198: 0.0569834502 | C198: 0.0569834502 | D198: -0.0002845243358 | F198: -0.0002846815567 | G198: =(F199-F197)/(A199-A197) -> 1.403099878e-06 | H198: 1.403258925e-06 | K198: 0.002704867359
A199: 1900 | B199: 0.05420834388 | C199: 0.05420834388 | D199: -0.0002708095063 | F199: -0.0002709641385 | G199: =(F200-F198)/(A200-A198) -> 1.34087695e-06 | H199: 1.341186408e-06 | K199: 0.002544812524
A200: 1910 | B200: 0.05156726007 | C200: 0.05156726007 | D200: -0.0002577132058 | F200: -0.0002578640177 | G200: =(F201-F199)/(A201-A199) -> 1.279891855e-06 | H200: 1.280307414e-06 | K200: 0.002401206845
... 418 more rows
